{"text_format":"2","workbook":"xlsx","n_sheets":2,"sheets":["Общая_инф","Оценка ГИС"],"not_rendered":{"charts":0,"images":0,"macros":0,"external_links":0,"defined_names":1,"comments":0,"pivot_tables":0},"unopened":[],"bounds":{"document_bytes":16777216,"sheet_cells":100000,"run_cost":"one","rows_first":2000,"rows_last":500,"rows_between":2000,"halvings":0,"cell_chars":16384,"cell_head_chars":4096},"cells_cut":0,"cells_raw":0,"read":"whole","date_system":"1900"}

{"sheet":"Общая_инф","index":0,"n_rows":4,"n_cols":1,"rows_kept":4,"cut":false,"hidden":false,"merged":[]}
["Общая информация"]
["Таблица с оценками является приложением к докладу \"Оценка открытости Государственных информационных систем в России\". (https://ach.gov.ru/upload/pdf/%D0%9E%D1%86%D0%B5%D0%BD%D0%BA%D0%B0%20%D0%BE%D1%82%D0%BA%D1%80%D1%8B%D1%82%D0%BE%D1%81%D1%82%D0%B8%20%D0%93%D0%98%D0%A1%202020.pdf)"]
["Таблица содержит выставленные экспертами баллы каждой из указанных ГИС по 12 атрибутам оценки и сопровождающие комментарии; комментарии к оценке каждого атрибута являются рабочим инструментом; результаты обобщения комментариев и оценок можно найти в тексте доклада в разделе 3.1. \"Оценка открытости некоторых ГИС\" в формате карточек с преимуществами и недостатками указанных ГИС"]
["Оценка указанных ГИС проводилась в период с 10.01.2020 по 28.02.2020. "]

{"sheet":"Оценка ГИС","index":1,"n_rows":52,"n_cols":33,"rows_kept":52,"cut":false,"hidden":false,"merged":[[1,29,1,30],[0,9,0,20],[0,21,0,32],[1,9,1,10],[1,11,1,12],[1,13,1,14],[1,15,1,16],[1,17,1,18],[1,31,1,32],[1,19,1,20],[1,21,1,22],[1,23,1,24],[1,25,1,26],[1,27,1,28]]}
[{"$nulls":9},"Этап 1: оценка доступности ГИС",{"$nulls":11},"Этап 2: оценка открытости данных ГИС"]
[null,"ФГИС","Оператор","Ссылка на сайт","Ссылка на раздел на сайте оператора","Рейтинг","Сводная оценка","Сводная оценка доступность (max 35) ","Сводная оценка открытые данные (max 40) ","Паспорт ГИС (max 5)",null,"Документация (max 10)",null,"Ведение раздела регламентирующих НПА  (max 5)",null,"Статистика ГИС в открытом доступе (max 5)",null,"Простота использования ГИС (max 5)",null,"Наличие профильных для ГИС аналитических материалов для массового пользователя (max 5)",null,"Раздел с открытыми данными открытые данные (max 10)",null,"Доступна массовая выгрузка (max 5)",null,"Документация по структуре данных (max 5)",null,"Данные удовлетворяют минимальным требованиям к их качеству (max 10)",null,"Есть API для данных (max 5)",null,"Есть документация к API для данных (max 5)"]
[null,"ФГИС Государственный каталог Музейного фонда Российской Федерации","Минкультуры","http://goskatalog.ru/portal/#/","Отсутствует","AA",{"$f":"J3+L3+N3+P3+R3+T3+V3+X3+Z3+AB3+AD3+AF3","v":64},{"$f":"J3+L3+N3+P3+R3+T3","v":25},{"$f":"V3+X3+Z3+AB3+AD3+AF3","v":39},1,"Отдельного паспорта или страницы с паспортом и основной информации нет на основном портале или на сайте оператора. Частично информацию можно собрать из раздела FAQ на самом портале + контакты оператора есть на самом портале",10,"Руководства пользователей и администровов содержится в разделе \"документы\". Руководства подробные и для разных типов пользователей https://goskatalog.ru/portal/#/for-museums/docs ",5,"Раздел регламентирующих НПА ведется на странице \"документы\" основного портала. Содержит все необходимые документы в удобном виде открывающегося списка ",1,"Статистики посещения портала или отдельных страниц нет в открытом доступе. Однако при формировании поиска по объектам культуры портал обрабатывает информацию и может выдать статистику объектов относящихся к определенному, заданному поиском типу",5,"Сам каталог интуитивно понятен. Есть достаточно быстрый поиск и по предмету культуры и по музею (расширенный). Доступно и очень подробно объяснены правила подключения к порталу для специальных пользователей (сотрудников музеев) и подключения к каталогу самих музеев.",3,"Обощающих аналитических материалов для массового пользователя обнаружить не удалось. Однако сам каталог, содержащий изображения предметов культуры и инфомрацию о музеях достаточно информативен и доступен из-за удобного поиска, а также на портале есть интерактивная карта музеев по России, которая может представлять интерес для массового пользователя. ",9,"Есть набор данных на портале ОД минкультуры: https://opendata.mkrf.ru/opendata/7705851331-museum-exhibits. Присутствует согашение, паспорт. есть доступ в виде таблицы и статистика скачиваний. Нет дополнительной визуализации набора, но есть всплывающее окно, которое появляется если в наборе нажать на один из объектов; в окне будет общая информация по объекту ",5,"Возможна массовая выгрузка всего данного набора (он смерджен в один файл весом 2,5 гигабайта)",5,"Описание структуры данных есть в формате Json. Структура скачивается из паспорта набора ОД",10,"Подробный, хороший набор, претензий к качеству нет",5,"API к набору отдает через специальную страницу портала ОД минкультуры https://opendata.mkrf.ru/item/dev",5,"Документация доступна по адресу той же страницы"]
[null,"ГИИС \"Электронный бюджет\"",null,"budget.gov.ru",null,"AA",52,24,28,4,"В разделе \"О проекте\" на портале ЭБ есть цели создания системы, описание содержимого портала, в футере (копирайте) сайта можно найти упоминание причастных госорганов. Подробная информация (собраны документы, форматы взаимодействия) есть на сайте оператора (http://www.roskazna.ru/gis/ehlektronnyj-byudzhet/)",7,"Документация для \"администраторов\" расположена на сайте оператора http://www.roskazna.ru/gis/ehlektronnyj-byudzhet/edinyy-portal-byudzhetnoy-sistemy/ и Минфина России http://budget.gov.ru/epbs/faces/p/Данные%20и%20сервисы/Вопросы%20и%20Ответы?_adf.ctrl-state=gbsru2p3p_220&regionId=45. На сайте ГИС в разделе вопросов и ответов размещена ссылка на документацию. Документация детализирована и обновлена, есть видеоинструкции. Для обычных пользователей доступен раздел \"Путеводитель по порталу\", но в нем нет, например, инструкций по работе с Конструктором данных.",3,"Отдельного раздела нет, но часть ссылок на НПА есть в разделе Вопросы и ответы, также часть НПА опубликована в разделе ГИС на сайте Оператора и на сайте Минфина",3,"Есть раздел \"Статистика\" с данными о количестве просмотров, визитов, посетителей с разбивкой по страницам и возможностью выбора периода, но нет данных о количестве скачиваний наборов данных или просмотров данных",3,"На сайте есть карта сайта, вопросы и ответы, полезные ссылки и путеводитель по сайту, но в целом сайт не интуитивно понятен для пользователя (например, конструктор данных)",4,"В разделах сайта есть инфографика и сводные материалы для пользователей",8,"Нет статистики скачиваний, визуализации и просмотра наборов данных",0,"Для крупных наборов данных, предоставляемых по API, возможность массовой выгрузки не предоставлена",3,"Файлы со структурой данных представлены, но не всегда точно заполнены",8,null,5,null,4,"Документация есть, но не всегда актуализирована"]
[null,"Единая информационная система в сфере закупок",null,"zakupki.gov.ru",null,"AA",55,28,27,3,"Общая информация доступна на сайте Федерального казначейства (http://www.roskazna.ru/gis/oos/). На сайте ГИС нет раздела \"О портале\"",10,"Подробные и регулярно обновляемые материалы публикуются в разделе \"Материалы для работы в ЕИС\". Представлены руководствами пользователя, обучающими видеоматериалами, файлами для настройки рабочего места, информацией для участников закупок и руководством по регистрации организаций и пользователей в ЕИС. Руководство пользователя занимает 950 стр и содержит 930 рисунков",5,"Есть раздел законодательство с разбивкой на НПА по 44-ФЗ и 223-ФЗ и по типам НПА",3,"Есть статистика посещаемости, но нет статистики по наборам открытых данных",3,"Поиск по закупкам/контрактам/договорам может быть неочевидным для пользователей",4,"Есть визуализация (аналитика) по экономии, планированию, контрактам и договорам по годам и регионам",8,"Нет визуализации и просмотра наборов данных",5,"Данные можно скачать на FTP-сервере",5,"Файлы со схемой данных подробные и регулярно обновляются",9,"Перечисленным критериям данные удовлетворяют, но -1б за качество данных",0,null,0]
[null,"Портал государственных и муниципальных учреждений",null,"bus.gov.ru",null,"AB",49,25,24,0,"На сайте ГИС нет раздела \"О портале\", в разделе ГИС на сайте Федерального казначейства нет упоминания bus.gov.ru, в поиске по сайту можно найти устаревшую таблицу с некоторыми метаданными http://www.roskazna.ru/o-kaznachejstve/funkcii-fk/666/1106584/?sphrase_id=3278644",10,"В разделе \"Документы\" опубликованы всевозможные руководства пользователей: общее, открытой части сайта, ТОФК, ЛК УО, ЛК Учреждений. Есть также руководство по версии для слабовидящих и мобильной версии. Помимо этого доступны обучающие видеоматериалы, памятки, требования к порядку формирования структурированной информации и информация об интеграции с внешними системами. Есть гит-тур по порталу",1,"Отдельного раздела нет, но несколько Приказов опубликовано в разделе \"Документы\"",5,"Есть раздел с посещаемостью и статистика скачиваний и просмотров наборов данных",4,"Сайт достаточно простой и есть гайд-тур, но меню с подробной информацией по организациям найти сложно",5,"Есть аналитический раздел с различными показателями",8,"Нет визуализации и просмотра наборов данных",5,"Данные можно скачать на FTP-сервере",2,"Есть Альбомы ТФФ и Журналы версий, но для интеграции",7,"Нет структуры данных, не заполняются паспорта",2,"Есть API, но недокументированное и не афишируется, низкий лимит на количество запросов",0,"Документации нет"]
[null,"Государственная автоматизированная информационная система \"Управление\"",null,"http://gasu.gov.ru",null,"AC",38,28,10,4,"В разделе \"О системе\" размещена информация о целях и задачах ГИС, базовом функционале системы. Имеется раздел \"контакты\", где указаны контактные лица от оператора ГИС. Отсутствует информация о целевых группах / категориях пользователей, на которых ориентирована ГИС.",9,"В разделе \"Руководства пользователей\" доступны необходимые руководства. Отсутствует деление на руководства пользователей и администраторов - фактически доступные руководства включают в себя как часть администратора (загрузка данных в ГИС), так и часть пользователя (использование подсистем ГИС, формирование запросов и пр.)",4,"Имеется раздел регламентирующих НПА. Содержит неполный перечень НПА (например, отсутствуют постановаления, регламентирующие создание и эксплуатацию ГИС в РФ)",1,"На сайте установлен счетчик посещений. Статистика по ГИС в структурированном виде отсутствует.",5,"Основные инфопанели ГИС доступны на главной странице сайта ГИС. Базовые функции ГИС доступны на глубине просмотра не более 2-х уровней.",5,"Инфопанели ГИС интуитивно понятны и доступны для массового пользователя.",4,"Есть раздел с открытыми данными. Доступна выгрузка в формате csv.",0,"Массовая выгрузка не доступна",2,"Отдельно документация не представлена. Описание данных доступно в диалоговом окне при обращении к данным по ссылке, в т.ч описание структуры данных в формате словарей",4,"Данные легко открывются и обрабатываются. Имеется большое количество пропусков в данных.",0,"В открытом доступе отсутствуют",0,"В открытом доступе отсутствует"]
[null,"Государственная информационная система жилищно-коммунального хозяйства","Почта России","https://dom.gosuslugi.ru/",null,"AD",33,33,0,5,null,10,"Очень подробная, структурированная онлайн-справка по системе",5,null,5,null,3,null,5,null,0,"В качестве открытых данных приведены справочники системы. Реальных открытых данных нет",0,null,0,"Описания структуры отдельных ОД - на уровне паспортов ОД",0,null,0,null,0]
[null,"Федеральная государственная информационная система ценообразования в строительстве","Минстрой РФ","https://fgiscs.minstroyrf.ru",null,"AD",25,25,0,4,"В разделе \"О системе\" размещена информация о целях и задачах ГИС. Имеется раздел \"контакты\", где указаны контактные лица от оператора ГИС. Информация о базовом функционале системы представлена в формате \"помщника\". Отсутствует информация о целевых группах / категориях пользователей, на которых ориентирована ГИС.",9,"В разделе \"База знаний\" представлены видео-гайды по регистрации юридических лиц (производителей строительных ресурсов, организаций, осуществляющих ввоз строительных материало, перевозчиках и др) в системе. Видео руководства совмещают в себе пользовательские и административные рекомендации.",0,"Раздел регламентирующих ГИС НПА отсутствует.",5,"Имеется структурированный раздел \"Статистика\" с общими статиситческим сведениями по ГИС, также данная информация в агрегированном виде предствалена на главной странице сайта ГИС.",5,"Основные сервисы ГИС (Федеральный реестр сметных нормативов, Классификатор строительных ресурсов\nМониторинг цен строительных ресурсов) доступны на глубине просмотра не более 2-х уровней.",2,"Не смотря на наличие инфопанели на главной странице сайта ГИС, отсуствует аналитическая информация по ценам на строительство, динамике ценообразования и пр.",0,"Раздел с открытыми данными отсутствует",0,"-",0,"-",0,"-",0,"В открытом доступе отсутствуют",0,"В открытом доступе отсутствует"]
[null,"Автоматизированная информационная система «Меркурий»","Россельхознадзор","https://mercury.vetrf.ru/",null,"AD",24,24,0,5,"Меркурий - програмная система ГИС Ветис. По ГИС имеется полноценная справочная система (раздел \"Справочная система\") с детализированным паспортом ГИС в формате wiki.",10,"Информация представлена в Справочной системе в формате wiki",5,"Имеется обновляемый раздел регламентирующих НПА в формате wiki",1,"На сайте установлен счетчик посещений. Статистика по ГИС в структурированном виде отсутствует.",3,"ГИС не предполагает открытого доступа к ее функционалу и сервисам. Ссылки на сервисы доступны на главной странице ГИС.",0,"Профильные для ГИС аналитические материалы для массового пользователя отсутствуют",0,"Раздел с открытыми данными отсутствует",0,"-",0,"-",0,"-",0,"В открытом доступе отсутствуют",0,"В открытом доступе отсутствует"]
[null,"ФГИС в области ветеринарии","Россельхознадзор","http://www.vetrf.ru/vetrf",null,"AD",24,24,0,5,"По ГИС имеется полноценная справочная система (раздел \"Справочная система\") с детализированным паспортом ГИС в формате wiki.",10,"Информация представлена в Справочной системе в формате wiki",5,"Имеется обновляемый раздел регламентирующих НПА в формате wiki",1,"На сайте установлен счетчик посещений. Статистика по ГИС в структурированном виде отсутствует.",3,"ГИС не предполагает открытого доступа к ее функционалу и сервисам. Ссылки на сервисы доступны на главной странице ГИС.",0,"Профильные для ГИС аналитические материалы для массового пользователя отсутствуют",0,"Раздел с открытыми данными отсутствует",0,"-",0,"-",0,"-",0,"В открытом доступе отсутствуют",0,"В открытом доступе отсутствует"]
[null,"ГИС Промышленности","Министерство промышленности и торговли РФ","https://gisp.gov.ru/",null,"AD",32,32,0,5,"Присутствует описание некоторых блоков ГИСП (например, каталога продукции), общее описание и паспорт ГИС находятся в разделе \"База знаний\" - \"Материалы и документы\" (\"Государственная информационная система промышленности - единая платформа цифровых возможностей для субъектов промышленной деятельности\"). Имеется краткое описание целей и видео-презентация / обзор ГИСП (http://minpromtorg.gov.ru/ministry/infosys/gisp/).",10,"Имеются руководства пользователей и админинстраторов в подразделе \"Инструкции и руководства для пользователей ГИСП\" раздела \"База знаний\".",4,"Регламентирующие ГИС НПА есть в разделе \"База знаний\" - \"НПА\", однако размещены совместно с иными НПА, не относящимися к регулированию самой ГИС, что усложняет их поиск и быстрый доступ к ним. ",5,"Общая статистика по ГИС представлена на главной странице сайта ГИС.",5,"Базовые сервисы ГИС доступны с главной страницы сайта ГИС.",3,"Имеется раздел \"Информационно-аналитические материалы\", темы представленных аналитических материалов разрознены и не охватывают весь профиль ГИС.",0,"Раздел с открытыми данными отсутствует",0,"-",0,"-",0,"-",0,"В открытом доступе отсутствуют",0,"В открытом доступе отсутствует"]
[null,"Единый портал государственных и муниципальных услуг (функций)","Минкомсвязь России","https://www.gosuslugi.ru/",null,"AD",28,28,0,5,"Подробная информация о ГИС представлена в разделе \"Общая информация о портале\"",10,"Представлены в разделе \"Документы\" (руководство пользователя, инструкция администратора)",4,"Информация размещена в разделе \"Юридические вопросы\". Размещены ссылки на сторонние сайты (сайт Минцифры, сайт Правительства РФ), по которым находятся документы, не всегда отвечающие области функционирования ГИС.",4,"Статистика по ГИС представлена на осноной странице сайта ГИС. Статистика не содержит информацию о количестве посещений, количестве использовании функций ГИС (кол-ве полученных услуг)",3,"ГИС обладает большим функционалом, основной функционал, включая наиболее востребованные жизненные систуации представлен на первой странице сайта ГИС.",2,"Аналитика представлена только в части количества зарегистрированных пользователей и количества платеже, осуществленных через ГИС.",0,null,0,null,0,null,0,null,0,null,0]
[null,"Единый интернет-портал для популяризации культурного наследия и традиций России","Минкультуры","https://www.culture.ru/","Отсутствует","BA",47,20,27,4,"Информация содержится в разделе \"о проекте\" на основном портале. Раздел трудно найти. Контактов оператора нет. https://www.culture.ru/about#tab-item-0",0,"Руководства пользователя и администратора обнаружить не удалось",2,"Отдельного раздела на сайте о регламентирующих НПА нет. Однако, отдельные НПА (госпрограммы, постановления и приказы о развитии портала) содержатся на сайте оператора (минкультуры) в разных разделах",4,"На портале есть автоматические счетчики посещаемости (яндекс-метрика, рамблер). Портал также отдает статистику агрегаторам, но не позволяет увидеть детальную статистику посещений по каждой странице. Статистика скачивания приложения также доступна",5,"Понятная хорошая структура сайта, удобный дизайн. Однако сложно найти на самом сайте раздел \"о проекте\" и раздел с открытыми данными. Последний переводит на общий портал минкультуры с ОД. Из него неочевидно, какие именно наборы данных соответствуют порталу cultura.ru",5,"Сайт представляет собой агрегатор различных материалов, основной потребитель которых - массовый пользователь",8,"Присутствует, но как часть портала ОД минкультуры (наборы). Активно наполняется, ведется.В наличии все необходимые документы  https://opendata.mkrf.ru/",2,"Можно выгрузить реестр и отдельными блоками наборов. массовой выгрузки обнаружить не удалось ",5,"Представлена в доступном виде и обновляется ",7,"Наборы данных достаточно полны, актуализируются и выгружаются на портал, но представлено малое количество из имеющихся в распоряжении портала Культура.рф данных в виде набора данных",5,"Доступно при получении специального ключа https://opendata.mkrf.ru/item/dev#",0,"Обнаружить не удалось"]
[null,"Единый государственный реестр объектов культурного наследия","Минкультуры","https://opendata.mkrf.ru/opendata/7705851331-egrkn/","Отсутствует","BA",46,16,30,4,"Представлен в виде паспорта набора открытых данных ",0,"Обнаружить не удалось.",0,"Обнаружить не удалось.",4,"Размещена статистика по скачиванию набора открытых данных и его оценке",5,"Набором данных пользоваться легко, информация о нем и сам набор доступен как через портал ОД минкультуры. так и через портал opendata.gov. Отдельно как услугу предоставляет это сайт госуслуг https://www.gosuslugi.ru/37292/1/info",3,"К таким материалам можно отнести карту об объектах ЕГРОКН, но иных материалов нет",10,"Портал и представлен в формате открытых данных",5,"Можно выгрузить как набора ",5,"Присутствует как паспорт набора ",5,null,5,"Можно выгрузить, так же как и другие наборы с портала mkrf через получение специального ключа",0,"Обнаружить не удалось"]
[null,"АИС \"Платформа открытых данных\" ",null,null,null,"BA",52,17,35,3,"Есть раздел \"О портале\", в нем  содержится общее описание понятия открытых данных и целей их публикации, ответственный и контакты, ссылки на НПА, являющиеся основанием для публикации ОД",5,"Руководств пользователя нет, но т.к. на портале содержатся только наборы данных, не очень понятно, зачем оно в данном случае нужно",1,"Раздела нет, но есть перечень НПА, регулирующих открытые данные",3,"Есть статистика скачиваний, просмотров, количество наборов данных",5,"Понятный и хорошо структурированный сайт",0,"Аналитики нет, но она и не  предполагалась",10,"Есть все, перечисленное в критериях",0,"Массовой выгрузки нет",5,"Структура данных обновлена, подробно описана, публикуется в формате JSON",10,"Есть все, перечисленное в критериях",5,null,5]
[null,"Единая межведомственная информационно-статистическая система","Минкомсвязь России","https://www.fedstat.ru",null,"BB",41,19,22,5,null,4,"Есть только руководство пользователя в версии от 2016 года - непонятна актуальность.\nЕсть дополнительные документы, мало полезные пользователям",3,"Есть раздел с НПА, но актуальность НПА под вопросом - очень старые версии документов (2010-2012 гг.)",5,"Есть специальная страница со статистикой на сайте. Данные обновляются из актуального раздела Яндекс.Метрика",2,"ГИС обладает большим функционалом, но есть вопросы по удобству и простоте использования",null,null,8,"Очень большое количество открытых данных (6235 наборов, выгружаемых Росстатом).\nЕсть актуальный реестр наборов ОД, но актуальность многих наборов (по датам в реестре)под вопросом.\nНаборы ОД никак не классифицированы - общий список",0,"Массовая выгрузка недоступна - только по отдельным наборам. Но для данного сайта целесообразность массовой выгрузки под вопросом",6,"Описания структуры отдельных ОД - на уровне паспортов ОД",8,"Много неактуальных наборов данных",0,null,0]
[null,"Портал открытых данных Российской Федерации",null,null,null,"BB",35,15,20,3,"В разделе \"О проекте\" есть общая информация о портале (цели, функционал), в футере можно найти указание госоргана, контакты службы технической поддержки",1,"Есть гит-тур по порталу",2,"Есть раздел \"Документы\", но он плохо структурирован и обновляется не регулярно",3,"Есть статистика скачиваний, просмотров, количество наборов данных и базовая статистика посещаемости, но представленные цифры вызывают вопросы (например, указывается разное количество наборов данных на разных страницах или сумма посетителей за один день больше, чем за месяц)",3,null,3,"Базовые материалы представлены на сайте, но их полезность и качество вызывают вопросы",6,null,0,null,4,null,4,null,3,"API плохо структурировано",3,"Руководство по API есть, но устаревшее и в формате pdf"]
[null,"Портал государственного и муниципального финансового аудита","Счетная палата России","https://portal.audit.gov.ru/#/",null,"BC",29,16,13,1,"Есть страница на сайте с кратким описанием назначения системы",3,"Есть обучающие видеоролики. Документации в текстовой форме нет",4,"Оценка снижена на 1 балл из-за неочевидности местоположения НПА. НПА есть, ектуальны",0,"Статистики ГИС нет - только цифры по содержательной области (аудиту)",4,"Интуитивно понятно, но навигация к некоторым разделам неочевидна",4,"Аналитики немало, но не вся она понятна для массового пользователя",3,"Раздел с открытыми данными формально есть, но данные неактуальные (2017 год)",0,null,4,"есть описание структуры наборов ОД",6,"формально -  большинству критериев качества удовлетворяют",0,null,0]
[null,"Единая ГИС учета НИР, ОКР и ТР (ЕГИСУ НИОКТР)","ФГАНУ ЦИТиС","https://www.rosrid.ru","https://citis.ru/citis_about.html#","BC",23,20,3,2,"Есть страница на сайте с кратким описанием назначения системы",8,null,5,null,0,"Статистика не обнаружена",4,"Интуитивно понятно, но навигация к некоторым разделам неочевидна",1,"Что-то есть, но мало",1,"Раздела с ОД нет. Есть конструктор наборов ОД, но данные для контструктора 2015-2016 гг",0,null,0,"описания к конструктору наборов ОД нет",2,"только за выгрузку в машиночитаемом формате",0,null,0]
[null,"ЕГАИС учета оборота алкогольной продукции",null,"https://egais.ru/",null,"BC",28,19,9,4,"Есть детальное описание ГИС на сайте информационной системы http://fsrar.ru/egais\n",6,"На сайте есть документация и видеоинструкции https://egais.ru/instrukcii\n",5,"Сведения о НПА размещены https://egais.ru/npa",0,"Отсутствует статистика в открытом доступе\n",4,"По большей части понятный сайт",0,"Аналитические материалы отсутствуют или неочевидно размещены\n",6,"Открытые данные публикуются на сайте службы Росалкогольрегулирования http://fsrar.ru/opendata но на него нет ссылки с сайта ФГИС\n",2,"Данные по отдельным наборам данных можно скачать вместе и есть файл списка данных позволяющий автоматизировать массовую выгрузку",1,"Документации нет, за исключением описанием структуры полей наборов данных в виде CSV файлов",null,null,0,"API для данных отсутствует\n",0,"Документация к API для данных отсутствует"]
[null,"Портал правовой информации pravo.gov.ru",null,"http://pravo.gov.ru",null,"BC",15,13,2,1,"Паспорт ГИС отсутствует, краткая информация есть в разделе \"О проекте\" http://pravo.gov.ru/Inform/about.html",6,"Есть большой раздел справки http://pravo.gov.ru/help/\n",2,"Неполные сведения есть в разделе о проекте http://pravo.gov.ru/Inform/about.html без детализации разграничения полномочий с Минюстом РФ\n",0,"Отсутствует статистика в открытом доступе\n",3,"Сайт скорее прост в использовании",1,"Аналитические материалы есть в виде статей, но не актуализировались много лет http://pravo.gov.ru/Inform/pravinfarticles/\n",2,"Раздел с открытыми данными присутствует, но не включает ключевые данные базы законопроектов и законов",0,"Массовая выгрузка невозможна, надо качать каждый отдельный файл",0,"Документация о структурах данных отсутствует",null,null,0,"API для данных отсутствует\n",0,"Документация к API для данных отсутствует"]
[null,"Федеральный реестр инвалидов (ФРИ)","ПФР","https://sfri.ru/",null,"BC",18,17,1,4,"В отдельных разделах имеются данные о поставщиках и пользователях ГИС, информация о целях и задачах, функционале ГИС предствалена как в разделе НПА, так и в доступной форме (в т.ч. с использование презентационных материалов) в растеле \"О ФРИ\". Возможно более организованное размещение информации о ГИС, в т.ч. с прямой публикацией презентационных материалов в интерактивной форме без необходимости их скачивания на десктоп. Некоторые презентационные материалы не функционируют (видео-презентация на главной странице сайта)",0,"Руководство пользователя и руководство администратора отсуствуют (разделы \"Поставщикам\" и \"Потребителям\" не раскрывают порядок использования ФГИС). В некоторых разделах сайта есть отсылки к руководству пользователя на вид сведений InvalidDataRequest (СМЭВ), но отсутсвтует ссылка на него.",5,"Информация размещена в разделе \"Законодательство\"",0,"Статистика по ГИС в открытом доступе на сайте ГИС отсутствует",3,"Использование функционала ГИС требует дополнительной регистрации через запрос на электронную почту оператора, отсутствует понятная система поиска.",5,"Материалы для массового пользователя размещены в разделе \"Аналитика\"",1,"Раздел с открытыми данными присутствует, по ссылке на открытые данные xml документ со сылкой на сторонний ресурс, не содержащий профильные данные",0,"-",0,"-",0,"-",0,"-",0,"-"]
[null,"Единая государственная информационная система социального обеспечения","Пенсионный фонд РФ","http://egisso.ru/site/","http://www.pfrf.ru/knopki/egisso/","BC",27,20,7,3,"Паспорт представлен как на странице оператора, так и на самом портале в разделе \"о проекте\": http://www.egisso.ru/site/page/about. В паспорте недостаточно прояснен основной функционал ГИС, отсутствуют контакты оператора",8,"Руководства пользователей размещены на отдельной странице вместе с остальными инструкциями, что контринтуитивно: http://egisso.ru/site/sections/3 Руководства достаточно подробные и актуализированные ",4,"НПА приведены без доп.пояснений http://www.egisso.ru/site/page/legislation",0,"Статистика посещения сайта разными категориями его пользователей отсутствует. Статистика скачивания наборов данных отутствует ",3,"Портал интегрирует информацию о мерах социальной поддержки и представляет ее в формате единого окна. Кабинет личного гражданина функционирует неплохо. Кабинет аналитика функционирует с ограничениями, в частности скачиваемые данных сохраняются в формате картинки, а не доступной для редактирования таблицы.",2,"Раздел статистика и аналитика представляет собой интерес для массового пользователя размещенными в нем данными по получателям, видам мсп и т.д. Однако в разделе не удалось найти обобщающую аналитику, текстовые материалы и т.д. Социальный калькулятор на момент оценки ФГИС не функционировал (нельзя было нажать кнопки \"применить\", \"очистить\" и \"выбрать из перечня мер\". ",2,"Данные представленные в соответствующих разделах нельзя отнести к открытым данным. размещенны наборы данных недоступны для скачивания через обычный вход в портал. Их можно скачать только зайдя через \"кабинет аналитика\". Скачиваемые таким образом данные представлены не в формате таблицы с рядами чисел, а представляют собой копию страницы, с которой предпочитаешь скачать информацию. По факту данные можно лишь соскрейпить из размещенных и в ручную настроенных таблиц. Паспорт разделов отсутствует, Условия использования ОД также",0,"нет",0,"нет",5,"Недоступна выгрузка в машиночитаемом формате. Данные достаточно дезагрегировны в форматах таблицы, имеются отдельно размещенные под каждую специальную категорию данных проясняющие справки (но найти их в соответствующем разделе сложно). ",0,"нет",0,"нет"]
[null,"Фильмы в кинозалах ","Федеральный фонд социальной и экономической поддержки отечественной кинематографии (Фонд Кино)","http://ekinobilet.fond-kino.ru/","Отдельаного раздела нет, есть ссылка, содержащая аналит. отчеты с ЕАИС http://www.fond-kino.ru/pages/otraslevaa-analitika/ ","BC",19,18,1,4,"Паспорт представлен на самом портале в специальном разделе \" О проекте\". Информация краткая, но присутствует блок FAQ в одной из подвкладок. Контакты оператора также на отдельной подвкладке",0,"Руководство пользователя и администратора не обнаружены. Есть инструкции двум типам пользователей при регистрации в кабинете http://ekinobilet.fond-kino.ru/sign-up/ ",5,"Список приведен и пополняется http://ekinobilet.fond-kino.ru/about/documents/ ",0,"Статистика использования портала отсутствует в открытом доступе",4,"Интуитивно понятный портал. Удобное размещение информации по просмотрам и бюджетам фильмов. Визуализация главных цифр. Кабинеты пользователя оценить не удалось ",5,"Такие материалы есть и активно публикуются ",1,"Раздела с открытыми данными нет. Есть доступная выгрузка через ряд вкладо ос статистикой либо в формате распознаваемого pdf, либо (реже) в формате xlsx. ",0,"нет",0,"нет",0,"нет",0,"нет",0,"нет"]
[null,"Единый государственный реестр недвижимости (ЕГРН)","Росимущество","https://rosreestr.ru/wps/portal/p/cc_present/EGRN_1","https://rosreestr.ru/site/fiz/poluchit-svedeniya-iz-egrn/?detail","BD",13,13,0,2,"Паспорта ГИС нет, но есть описания госуслуг, оказываемых с помощью ГИС",2,"Есть раздел \"Помощь и поддержка\" для всех сервисов сайта (конкретно по ЕГРН информации мало)",3,"Есть наполненный раздел по НПА, но документы в разделе не классифицированы по темам",0,"Нет статистики пр ЕГРН",4,"Формы работы с онлайн-сервисами достаточно просты для понимания и снабжены подсказками",2,"Есть немного статистики и аналитики на сайте Росреестра, но вообще про службу, а не специфически про ЕГРН",0,"В разделе открытых данных нет наборов ОД по ФГИС ЕГРН",0,"Нет данных - нет и массовой выгрузки",0,"Документация о структурах данных отсутствует",0,"Данные не публикуются",0,"API для данных отсутствует\n",0,"Документации нет"]
[null,"Инвестиционный портал с процедурами визуализации инвестиционных проектов, территорий опережающего развития, обратной связи с инвесторами, предоставления информации об инвестиционном климате Дальнего Востока и возможностях по инвестированию","Министерство по развитию Дальнего востока","https://investmap.erdc.ru/",null,"BD",10,10,0,0,"Паспорт ГИС отсутствует",0,"Руководства пользователя и администратора отсутствуют",0,"Раздел регламентирующих ГИС НПА отсутствует.",0,"Статистика по ГИС в открытом доступе отсутствует.",5,"Интуитивно понятный интерфейс ГИС, базовый функционал реализуются в формате интерактивных диалоговых окон и фильтров на главной странице ГИС",5,"ГИС ориентирована на массового пользователя",0,"Раздел с открытыми данными отсутствует",0,"-",0,"-",0,"-",0,"В открытом доступе отсутствуют",0,"В открытом доступе отсутствует"]
[null,"Единый государственный реестр записей актов гражданского состояния","ФНС России ","https://zags.nalog.ru/","https://www.nalog.ru/rn77/zags/ ( в день проверки: 29.11.2019 страница на сайте была недоступна, сделан соответсвущий скрин","BD",19,19,0,4,"Есть подробная информация на странице портала, однако она не содержит контактов оператора: https://zags.nalog.ru/about/project/",2,"Руководство пользователя и администратора по системе в общем отсутствуют, но есть разделы на портале и ряд документов, которые являются руководствами пользователя для получения отдельных типов данных через СМЭВ (например, рождение /смерть / перинатальная смертность). ",5,"Раздел присутствует и обновляется: https://zags.nalog.ru/about/np/",0,"Статистика посещения и использования ГИС не опубликована.",4,"Использование ГИС подразумевается только ограниченным набором ведомств (ТФОМС, ФНС, ПФР, и т.д.), поэтому оценить удоьство для внешнего пользователя затруднительно. Тем не менее, страница с сервисами находится легко, содержит документацию. ",4,"Профильные статистические материалы в формате картинок присутствуют на сайте: https://zags.nalog.ru/statistics/ Однако раздел с презентацией и видео-материалами создан, но не заполняется: https://zags.nalog.ru/about/video/ ",0,"нет",0,"нет",0,"нет",0,"нет",0,"нет",0,"нет"]
[null,"ФГИС «Единая система управления государственным имуществом»",null,"https://esugi.rosim.ru/ (новая версия, вход через обладание специфич. правами) \nhttps://mvpt.rosim.ru (старая версия)","https://www.rosim.ru/about/systems/mvpt","BD",15,15,0,3,"Паспорт как таковой отсутствует, хотя страница на сайте оператора есть и ведется. Однако на ней не содержится инфомрации о целях ФГИС, о ее ресурсах, только гиперссылки и переходы на другие разделы )вход в ЛК, регистрация и т.д.) и контакты оператора и горячей линии",6,"Документация представлена на старом сайте mvpt. Руководства пользотваля и администратора содержатся по отдельным элементам ФГИС, но не всегда обновлены",4,"Регламентирующие НПА содержатся на отдельной странице со всеми остальными ФГИС Росимущества: https://www.rosim.ru/about/systems (таким образом их поиск немного затруднен)",0,"Обнаружить не удалось.",2,"Допуск к основному порталу возможен только через специальную регистрацию для отдельных категорий (госслужащие, юр.лица,профдиректора или независимые эксперты).Основные документы о портале (инструкции и руководства) расположены на старом домене mvpt, навигация по которому затруднена. При прямом переходе на новый портал, смысл его использования не очевиден",0,"Обнаружить не удалось.",0,"Обнаружить не удалось.",0,"Обнаружить не удалось.",0,"Обнаружить не удалось.",0,null,0,"нет",0,"нет"]
[null,"Единый портал внешнеэкономической информации","Минэкономразвития","http://ved.gov.ru","Отсутствует","BD",15,15,0,3,"В сжатом виде информация содержится в разделе \"О портале\" на самом сайте ФГИС",0,"Обнаружить не удалось.",2,"Присутстствуют отдельные отсылки к НПА и госпрограмме, но единого раздела нет ",0,"Приведена статистика по самой внешней торговле, статистика по использованию ФГИС недоступна",5,"Понятная структура сайта. с хорошим поиском по ключевым словам. Достунпя и быстрая регистрация втч для физлица. ",5,"Профильные материалы размещены в нескольких разделах в том числе в разделе со статистикой. В целом портал сфокусирован на агрегировании всей информации, интересной и полезной потенциальному поставщику в формате \"одного портала\"",0,"Обнаружить не удалось.",0,null,0,"Обнаружить не удалось.",0,null,0,null,0]
[null,"ГАС \"Выборы\"","ЦИК ","http://izbirkom.ru/","http://www.cikrf.ru/gas/","BD",23,16,7,4,"Размещен на сайте оператора и подробно представлен, но вместо контактов оператора приведен телефон горячей линии ",0,"Руководств пользователя и администратора в открытом доступе не обнаружено ",5,"Раздел ведется на сайте оператора. ",2,"Есть отдельные упоминания в аналитических материалах о функционировании ГИС, но обновляемого раздела или регулярных публикаций об этом обнаружить не удалось ",2,"Сам портал достаточно запутан и не имеет прояснений о переменных по которым возможен поиск информации. Мелкий устаревший шрифт, затрудненный поиск. Неочевидные переходы на сайты с данными горизбиркомов ",3,"Профильные материалы присутствуют на сайте оператора ",3,"Обнаружен, 68 наборов, но они бессмысленные",0,"нет",3,"Есть, подробная, по форме",1,"опубликованные данные - формальность. очень многого просто нет ",0,"нет",0,"нет"]
[null,"АИС «Открытый бюджет для граждан»",null,null,null,"BD",14,14,0,3,"В разделе \"О портале\" есть информация об ответственном госоргане, цели портала, краткое описание каждого раздела, форма для обратной связи, телефон техподдержки",2,"Есть гит-тур по порталу и страница с кратким описанием функционала сайта. Руководство пользователя это не заменяет, т.к. не описан раздел \"Аналитика\", предусматривающий возможность работы с наборами данных и регистрацию на портале",2,"Есть раздел НПА, но он не обновлен и не содержит НПА, в соответствии с которыми разрабатывается ГИС",0,"Статистики посещаемости нет",3,null,4,"Аналитических материалов много, но частично устаревшие",0,null,0,null,0,null,0,null,0,null,0]
[null,"АИС ФССП России",null,"Отдельного сайта/интерфейса к ГИС нет",null,"CB",20,1,19,1,"Паспорт ГИС отсутствует",0,"В публичном доступе нет материалов по работе с системой\n",0,"Отсутствуют сведения о регламентирующих НПА",0,"Отсутствует статистика в открытом доступе\n",0,"Отсутствие сайта не позволяет оценить сложность системы\n",0,"На сайте полностью отсутствуют аналитические материалы\n",6,"Данные публикуются на специальном портале открытых данных ФССП России\n http://opendata.fssprus.ru/ и включаю данные в формате RDF",2,"Данные по отдельным наборам данных можно скачать вместе и есть файл списка данных позволяющий автоматизировать массовую выгрузку",1,"Документации нет, за исключением описанием структуры полей наборов данных в виде CSV файлов",null,null,5,"Существует API для данных https://api-ip.fssprus.ru",5,"У API для данных есть актуальная документация https://api-ip.fssprus.ru/swagger\n"]
[null,"Реестр федерального имущества Российской Федерации","Росимущество","Отдельного сайта нет, есть реестр открытых данных на: https://www.rosim.ru/opendata","https://www.rosim.ru/activities/reestr/rfi","CB",38,13,25,2,"Паспорта (описания) нет, раздел на сайте оператора (Росимущество) содержит сведения о статистике и типе содержащихся данных (рисунком), но текстового описания нет ",4,"Руководства пользователя и администратора для реестра отсутствуют",5,"На сайте оператора содержится полная информация о НПА, регулирующих деятельность реестра. Информация обновляется",1,"Раздел статистики есть на сайте оператора. Однако под статистикой там понимается не посещение портала и количество пользователей, а статистика из самого реестра. В разделе в еженедельном режиме подгружаются отчеты об изменениях в реестре в формате слайдов / таблиц. ",1,"Доступ в сам реестр не открыт, отдельного сайта с разделом нет,на сайте оператора наборы открытых данных из реестров присутствует среди прочих наборов ОД, публикуемых росимуществом",0,"Материал не найдены",9,"Подробно ведущийся раздел на сайте оператора про наборы открытых данных, в том числе обновляемый раздел новостей и архив с предыдущими версиями раздела. По каждому набору открытых данных доступна статистика по загрузке и отзывам пользователей. Проблема в контринтутивном поиске (переходе с раздела о реестре на сайте оператора) раздела с набором открытых данных",3,"через специальную форму для скачивания на сайте в формате csv",5,"Паспорт и дополнительная информация есть по каждому разделу, струтктура данных представлена в формате xsd",8,"У наборов есть машиночитаемый формат,  паспорта зполняются подробно и корректно, за обновлением следят. Дезагригированность достаточная,но не все наборы полные",0,"нет",0,"нет"]
[null,"\"Безопасные дороги.РФ\"","Минкомсвязь России (ЦЭКИ)","http://безопасныедороги.рф",null,"CB",34,11,23,2,"Есть краткая информация о назначении сайта",0,"Документации по сайту нет. Интерфейс простой, \"интуитивно понятный\"",0,"НПА по сайту нет",5,"Статистики много - характер сайта статистический",2,"Функциональность достаточная для назначения сайта",2,"Небольшой набор статистики-аналитики, часть статистики старая или без привязки к конкретному периоду",9,"Наборы ОД соответствуют назначению сайта, но для проверки актуальности необходимо входить отдельно в паспорт каждого набора",0,null,6,"Структуры описаны, доступ к описаниям - через паспорт набора",8,null,0,null,0]
[null,"ГАС Правовой статистики",null,"http://crimestat.ru",null,"CC",17,11,6,0,"Паспорт ГИС отсутствует",0,"В публичном доступе нет материалов по работе с системой\n",0,"Отсутствуют сведения о регламентирующих НПА",4,"Изначально сайт создан под публикацию статистических сведений\n",4,"Простой в использовании сайт ГИС",3,"Сайт задуман как аналитический, материалы изначально носят аналитический характер\n",5,"Раздел с открытыми данными присутствует http://crimestat.ru/opendata\n",1,"Есть возможность выгрузки всех показателей\n",0,"Документация о структурах данных отсутствует",null,null,0,"API для данных отсутствует\n",0,"Документация к API для данных отсутствует"]
[null,"ФГИС \"Единый реестр проверок\"",null,"http://proverki.gov.ru",null,"CC",16,8,8,0,"Паспорт ГИС отсутствует",4,"Есть обучающие материалы https://proverki.gov.ru/wps/wcm/connect/6dc1a0dc-3fc9-431f-b26a-bcdbcc29714a/%D0%9E%D0%B1%D1%83%D1%87%D0%B0%D1%8E%D1%89%D0%B8%D0%B5_%D0%BC%D0%B0%D1%82%D0%B5%D1%80%D0%B8%D0%B0%D0%BB%D1%8B_%D0%A4%D0%93%D0%98%D0%A1+%D0%95%D0%A0%D0%9F.zip?MOD=AJPERES&CONVERT_TO=url&CACHEID=ROOTWORKSPACE-6dc1a0dc-3fc9-431f-b26a-bcdbcc29714a-mClPq-0 ",0,"Отсутствуют сведения о регламентирующих НПА",0,"Отсутствует статистика в открытом доступе\n",4,"По большей части понятный сайт",0,"Аналитические материалы отсутствуют",5,"Есть раздел с открытыми данными https://proverki.gov.ru/wps/portal/Home/opendata/!ut/p/z1/04_Sj9CPykssy0xPLMnMz0vMAfIjo8ziPT0tPA3dDQx9LYwtnQ0CDdycTNzDggwMDMz1w8EKDFCAo4FTkJGTsYGBu7-RfhTp-pFNIk4_HgVR-I0P14_CogTVB4TMKMgNDY0wyHQEAHxTlXQ!/dz/d5/L2dBISEvZ0FBIS9nQSEh/\n",0,"Массовая выгрузка невозможна, надо качать каждый отдельный файл",3,"Доступны XSD схемы описания структуры данных. Детализации особенностей данных нет",null,null,0,"API для данных отсутствует\n",0,"Документация к API для данных отсутствует"]
[null,"ЕИАС безопасности дорожного движения",null,"http://stat.gibdd.ru",null,"CC",19,15,4,0,"Паспорт ГИС отсутствует",4,"Есть документация http://stat.gibdd.ru/help/#locale=ru неудобная для пользователя",0,"Отсутствуют сведения о регламентирующих НПА",4,"Изначально сайт создан под публикацию статистических сведений\n",4,"По большей части понятный сайт",3,"Сайт задуман как аналитический, материалы изначально носят аналитический характер\n",3,"Есть выгрузка данных http://stat.gibdd.ru/, но не упоминается что это открытые данные",1,"Есть возможность массовой выгрузки архивных данных\n",0,"Документация отсутствует\n",null,null,0,"API для данных отсутствует\n",0,"Документация к API для данных отсутствует"]
[null,"ЕГАИС учета древесины и сделок с ней",null,"https://lesegais.ru/",null,"CC",14,9,5,0,"Паспорт ГИС отсутствует",6,"Руководство пользователя предствалено в разделе \"Новости\", что затрудняет его поиск (https://lesegais.ru/rukovodstvo-polzovatelya). Руководство администратора отсутствует.",0,"Раздел регламентирующих ГИС НПА отсутствует.",0,"Статистика по ГИС в открытом доступе отсутствует.",3,"ГИС не предполагает открытого доступа к ее функционалу и сервисам. Ссылки на сервисы доступны на главной странице ГИС.",0,"Профильные для ГИС аналитические материалы для массового пользователя отсутствуют",5,"Есть раздел с открытыми данными, однако данные нельзя выгрузить, используя интерфейс ГИС.",0,"Массовая выгрузка не доступна",0,"Документация по структуре данных отсутствует",0,null,0,"В открытом доступе отсутствуют",0,"В открытом доступе отсутствует"]
[null,"ФГИС координации информатизации","Минкомсвязь России (ЦЭКИ)","https://portal.eskigov.ru/",null,"CC",17,13,4,1,"Паспорт ГИС отсутствует. Есть минимальная информация об операторе и контактные данные",8,"Есть вся необходимая документация, в том числе, и актуальная, но много устаревшей документации, которая может вводить в заблуждение",3,"Есть НПА, но они не выделены в отдельный раздел и не категорированы. Есть устаревшие НПА. Для ключевых НПА отсутствуют актуальные редакции",0,"Статистика по ГИС отсутствует",0,"Открытый функционал ГИС отсутствует. Функционал доступен только авториованным пользователям (авторизация - через официальную заявку от ФОИВ)",1,"Присутствует минимальное количество условно аналитических материалов",2,"Открытые данные присутствуют чисто формально. Полезность открытых данных близка к 0",0,"Массовая выгрузка недоступна - только по отдельным наборам",2,"Формальное описание структуры открытых данных без пояснения назначения полей",0,null,0,null,0]
[null,"ФГИС досудебного обжалования","Минкомсвязь России","https://do.gosuslugi.ru",null,"CC",12,2,10,0,"Паспорта нет",0,"Документации нет",0,"Раздела НПА нет",1,"Минимальная статистика",1,"Мало функций, разобраться несложно. Функциональность в открытой части минимальная",0,null,4,"Мало наборов ОД (всего 2), обновление регулярное",0,null,1,"Описания структуры отдельных ОД - на уровне паспортов ОД",5,"Нужна переоценка в соответствии с критериями, предложенными О.Пархимович",0,null,0]
[null,"АИС обеспечения открытости деятельности ФОИВ, реализуемой в рамках государственных программ РФ",null,null,null,"CC",20,9,11,0,"Раздела \"О проекте\" нет, единственная доступная информация - название госоргана в футере сайта",0,"Руководства пользователя нет",0,"НПА нет, отдельного раздела тоже",3,"Яндекс.Метрика доступна, но отображается только количество просмотров за неделю. Статистики по наборам данных нет",3,null,3,"Есть раздел \"Сводная аналитика\", но отображаемые данные вызывают вопросы",6,"Нет возможности просматривать и визуализировать наборы данных, нет статистики, не на все наборы данных есть ссылки",0,"Массовой выгрузки нет",1,"Файл есть, но структуры в нем нет",4,"Данные не обновлены, структуры нет, паспорт заполнен не полностью",0,null,0]
[null,"Автоматизированная информационная система учета некоммерческих и религиозных организаций (АИС \"УНРО\")",null,"http://unro.minjust.ru/",null,"CD",8,8,0,2,"Паспорт ГИС представлен в минимальном объёме на сайте разработчика, подведа Минюста России http://www.scli.ru/resources/gis/unro",0,"В публичном доступе нет материалов по работе с системой\n",3,"Есть раздел \"Нормативные правовые акты\", но с большими проблемами в датах http://unro.minjust.ru/Acts.aspx\n",0,"Отсутствует статистика в открытом доступе\n",3,"Сайт скорее прост в использовании",0,"На сайте полностью отсутствуют аналитические материалы\n",0,"Раздел с открытыми данными отсутствует\n",0,"Нет возможности выгружать данные\n",0,"Документация о структурах данных отсутствует",0,"Данные не публикуются",0,"API для данных отсутствует\n",0,"Документация к API для данных отсутствует"]
[null,"Единая государственная информационная система в сфере здравоохранения",null,"https://portal.egisz.rosminzdrav.ru/",null,"CD",17,17,0,1,"Отдельного паспорта ГИС нет, минимальная информация есть на одном из сайтов ЕГИСЗ https://egisz.rosminzdrav.ru",8,"Подробная документация есть в разделе \"Материалы\" https://portal.egisz.rosminzdrav.ru/materials",3,"Есть раздел \"Нормативные правовые акты\", но с отсутствием обновления в документах за последние 2.5 года https://portal.egisz.rosminzdrav.ru/materials\n",1,"Статистика публикуется в крайне ограниченном объёме",4,"У ГИС есть подробная поддержка https://support.egisz.rosminzdrav.ru/",0,"На сайте полностью отсутствуют аналитические материалы\n",0,"Раздел с открытыми данными отсутствует\n",0,"Нет возможности выгружать данные\n",0,"Документация о структурах данных отсутствует",0,"Данные не публикуются",0,"API для данных отсутствует\n",0,"Документация к API для данных отсутствует"]
[null,"Система обеспечения законодательной деятельности",null,"https://sozd.duma.gov.ru/",null,"CD",12,12,0,1,"Отдельного паспорта ГИС нет, минимальная информация есть на одном из сайтов старой версии сайта Госдумы http://old.duma.gov.ru/systems/",0,"В публичном доступе нет материалов по работе с системой\n",0,"Отсутствуют сведения о регламентирующих НПА",3,"Ограниченная статистика публикуется в разделе \"Информация о законопроектах и законах по субъектам права законодательной инициативы\"",5,"Максимально простой и понятный интерфейс",3,"Система включает аналитические и статистические разделы\n",0,"Раздел с открытыми данными отсутствует\n",0,"Нет возможности выгружать данные\n",0,"Документация о структурах данных отсутствует",0,"Данные не публикуются",0,"API для данных отсутствует\n",0,"Документация к API для данных отсутствует"]
[null,"АИС \"Национальная электронная библиотека\"",null,"https://rusneb.ru/",null,"CD",10,10,0,1,"Паспорт ГИС отсутствует, краткая информация есть в разделе \"О проекте\" https://rusneb.ru/about/",1,"Минимальная документация есть в разделе \"Вопросы и ответы\" https://rusneb.ru/faq/",4,"Есть подробный раздел Правовой информации со списком регламентирующих НПА https://rusneb.ru/for-libraries/legal-information/\n",0,"Отсутствует статистика в открытом доступе\n",4,"По большей части понятный сайт",0,"На сайте полностью отсутствуют аналитические материалы\n",0,"Раздел открытых данных отсутствует\n",0,"Массовая выгрузка невозможна, надо качать каждый отдельный файл",0,"Документация о структурах данных отсутствует",0,"Данные не публикуются",0,"API для данных отсутствует\n",0,"Документация к API для данных отсутствует"]
[null,"ФГИС \"Наша природа\"",null,"http://priroda-ok.ru",null,"CD",11,11,0,1,"Паспорт ГИС отсутствует, краткая информация есть в разделе \"О проекте\" https://priroda-ok.ru/#/about/",6,"Есть краткая документация для пользователей https://priroda-ok.ru/#/about/howsend, нет иных документов для модераторов и тд",0,"Отсутствуют сведения о регламентирующих НПА",0,"Отсутствует статистика в открытом доступе\n",4,"По большей части понятный сайт",0,"На сайте полностью отсутствуют аналитические материалы\n",0,"Раздел открытых данных отсутствует\n",0,"Массовая выгрузка невозможна, надо качать каждый отдельный файл",0,"Документация о структурах данных отсутствует",0,"Данные не публикуются",0,"API для данных отсутствует\n",0,"Документация к API для данных отсутствует"]
[null,"Электронная БД всех перемещенных в результате Второй мировой войны и находящихся на территории РФ культурных ценностей","Минкультуры","http://lostart.ru/ru/","нет","CD",10,10,0,1,"Представлен разделом сайта \"о проекте\" http://lostart.ru/ru/ Раздел содердит, скорее, историческую информацию, чем административную. Отсутствует ясно продеклалированная цель ГИС, оператор, поддержка и др. типы вострбованных сведений",0,"Руководства пользователя и администратора не найдены. ",5,"Раздел НПА содержит все документы в актуальном состоянии. К регламентирующим НПА также отнесены разные типы конвенций о правилах ведения войны и отношении к культурным ценностям на территориях, где ведутся военные дейсвтия ",1,"Статистика посещения портала отсутствует. Статистика с общим количеством объектов или объектов по типам также отсутствует ",1,"Порталом сложно пользоваться из-за устаревшего формата сайта, трудности перемещения по разделам, отсутствия единого каталога с предметами учета, отсутствием интеллектуального поиска по сайту и т.д.",2,"К таким материалам можно отнести текстовые документы на сторонник сайтах из разделов \"Специальные исследования\" и \"Пресса\". Формат представления данных материалов неудобен ",0,"нет, в том числе на портале ОД минкультуры",0,"нет",0,"нет",0,null,0,"нет",0,"нет"]
[null,"ЕИС управления кадровым составом государственной гражданской службы РФ","Минкомсвязь России","https://gossluzhba.gov.ru/",null,"CD",7,7,0,2,"Минимальная информация о назначении портала",1,"Документации практически нет - только краткая подсказка по базовым начальным действиям",1,"Общие НПА по госслужбе. Специфических НПА по ГИС отдельно не представлено",1,"Минимальная статистика (4 показателя)",1,"\"Интуитивно понятный интерфейс\". В открытой части функциональность минимальная",1,"Минимальная аналитика по ГИС",0,null,0,null,0,null,0,null,0,null,0]
[null,"Единая ФИС Земель Сельхозназначения",null,"http://efis.mcx.ru",null,"DD",0,0,0,0,"ГИС не является открытой - ссылка на раздел администратора: для просмотра раздела необходима авторизация на портале.",0,"-",0,"-",0,"-",0,"-",0,"-",0,"-",0,"-",0,"-",0,"-",0,"-",0,"-"]
[null,"ФИАС","ФНС России","https://fias.nalog.ru","https://www.nalog.ru/rn77/service/fias/","BA",57,17,40,4,"На сайте ГИС (https://fias.nalog.ru/FiasInfo) представлена информация, включающая: дату создания, цель создания. Отсутствует описание целевых групп пользователей, а также контакты оператора (в свою очередь, прямой переход на сайт оператора доступен с каждой сайта ГИС)",6,"В открытом доступе размещено руководство пользователя публичного сайта ФИАС, а также регламентирующие работу ГИС НПА (приказы Минфина России, постановления Правительства РФ, а также общие федеральные законы 184-ФЗ, 131-ФЗ, 443-ФЗ). Тексты размещенных федеральных законов не содержат последние обновления. Отсутствует раздел с руководством для администратора. Есть раздел \"Вопросы и ответы\", включающий разъяснения по порядку предоставления заявителю сведений об адресах, о порядке обновления информации об адресе и о порядке присвоения информации об адресе.",3,"Раздел с НПА (\"Документы\") присутствует, тексты размещенных федеральных законов не содержат последние обновления (например, 184-ФЗ - крайние обновления за 2019 год, на сйте ГИС - за 2015). ",0,"На сайте ГИС в открытом доступе отсутствует информация о количестве пользователей, посещений ГИС, статистика по выгрузке данных, использованию услуг ГИС.  ",4,"Базовые функции: получение выгрузок из БД, оформление заявки на получения информации об адресе, - находятся на глубине просмотре не более, чем в два уровня.",0,"Раздел \"Новости\" не функционирует (выдает ошибку, скриншот сделан на 27.02.2020), иные разделы доступные для массового пользователя (аналитические и информационные материалы, презентации) отсутсвуют.",10,"Для данного параметра оценивался раздел \"Открытые данные\" сайта ФНС России, в котором размещен набор данных \"Банк данных ФИАС\". Набор данных бесплатный, паспорт заполнен, доступна статистика скачиваний набора. Есть поиск по данным на сайте с понятной и структурированной выдачей результатов.",5,"Доступна массовая выгрузка",5,"Доступна подробная документация и схемы данных",10,"Данные публикуются в машиночитаемом формате, дезагрегированы и сопровождаются идентификаторами, структура данных соответствует набору. Паспорт данных размещен в разделе \"Открытые данные\" сайта ФНС России.",5,"Есть \"служба получения обновлений\", позволяющая скачать последний или все файлы.",5,"Документация содержит описание методов и полей."]
[null,"Государственная информационная система обязательного медицинского страхования\nГИС ОМС ","Федеральный фонд обязательного медицинского страхования ","нет","http://www.ffoms.ru/documents/registry/ project.ffoms.ru","СС",5,2,3,0,"Паспорта нает, отдельного сайта нет, вход в ГИС разрешен только для авторизованных опльзователей. Информация по подсистемам доступна из инфомрации о госконтрактах",1,"В открытом доступе можно найти FAQ для пользователей системы https://kb.i-novus.ru/pages/viewpage.action?pageId=1671365",1,"Раздел НПА гарантирующих ОМС размещен на сайте оператора, однако документации по самой ГИС нет ",0,null,0,null,0,null,2,"Раздел есть на сайте оператора. Размещены 2 набора, 2 из которых доступны для скачивания в формате xlsx и для просмотра в виде карты размещения объектов",0,"не доступна",0,"Отсутствует документация по структуре данных ",1,"Качество размещенных наборов неплохое, но наборов крайне мало из потенцальных доступных данных ",0,"нет",0,"гнт"]